fUSD/lending_fUSD_20240307
["ID","MTS","AMOUNT","RATE_DAILY","PERIOD"]
[317362761,1709778637672,-3911.14,0.00015548,2]
[317362762,1709778637682,-3911.14,0.00015548,2]
[317362763,1709778637691,-3911.14,0.00015548,2]
[317362764,1709778637701,-3911.14,0.00015548,2]
[317362765,1709778637711,-3911.14,0.00015548,2]
[317362766,1709778637720,-3911.14,0.00015548,2]
[317362767,1709778637729,-3911.14,0.00015548,2]
[317362768,1709778637738,-3911.14,0.00015548,2]
[317362769,1709778637748,-3911.23059442,0.00015548,2]
[317362770,1709778637757,-2636.44799106,0.00015548,2]
[317362771,1709778637769,-697.50806926,0.00015549,2]
[317362772,1709778637778,-501.97741651,0.00015549,2]
[317362773,1709778637787,-44753.89526254,0.0001555,2]
[317362774,1709778637846,-308.807424,0.0001555,2]
[317362776,1709778637868,-1386.72675487,0.0001555,2]
[317362778,1709778637880,-534.8,0.0001555,2]
[317362779,1709778637891,-475.89,0.0001555,2]
[317362780,1709778637910,-680.55659716,0.0001555,2]
[317362781,1709778637921,-118007.89322885,0.0001555,2]
[317362785,1709778637945,-390.12059791,0.0001555,2]
[317362786,1709778637956,-504.007778,0.0001555,2]
[317362787,1709778637972,-2143.74356083,0.0001555,2]
[317362788,1709778637988,-322.16141251,0.0001555,2]
[317362789,1709778637999,-12741.68287603,0.0001555,2]
[317362790,1709778638012,-667.61891395,0.0001555,2]
[317362791,1709778638048,-6159.726506,0.0001555,2]
[317362792,1709778638059,-2005.46786835,0.0001555,2]
[317362802,1709778640080,-202.0,0.00013616,2]
[317362803,1709778640090,-202.0,0.0001467,3]
[317362804,1709778640099,-183.40951527,0.00015471,2]
[317362805,1709778640108,-595614.48193487,0.0001555,2]
[317362806,1709778640120,-183954.71174622,0.0001555,2]
[317362807,1709778640136,-2584.40339513,0.0001555,2]
[317362808,1709778640147,-6635.79509113,0.0001555,2]
[317362809,1709778640172,-5162.84157221,0.0001555,2]
[317362810,1709778640184,-2044.61000517,0.0001555,2]
[317362811,1709778640195,-2644.46518309,0.0001555,2]
[317362818,1709778640562,-3790.32984,0.0001555,2]
[317362819,1709778640736,-159569.63479398,0.0001555,2]
[317362820,1709778641398,-359.36308212,0.0001555,2]
[317362832,1709778643446,-745.36066559,0.00013993,2]
[317362833,1709778643455,-5406.4062832,0.0001555,2]
[317362834,1709778643568,-3273.26709739,0.0001555,2]
[317362841,1709778646393,-272.38702724,0.0001555,2]
[317362842,1709778646574,-19350.50561875,0.0001555,2]
[317362847,1709778677286,1000.0,0.0001325,2]
[317362851,1709778775142,1000.0,0.0001325,2]
[317362852,1709778877020,1000.0,0.0001325,2]
[317362853,1709778892207,253.1,0.00012691,2]
[317362854,1709778970010,1000.0,0.0001325,2]
[317362855,1709778993766,202.0,0.00012616,2]
[317362856,1709778995090,202.0,0.00016736,7]
[317362857,1709779062442,1000.0,0.0001325,2]
[317362858,1709779151831,1000.0,0.0001325,2]
[317362859,1709779313868,2100.0,0.00027,120]
[317362860,1709779354296,202.0,0.00012646,2]
[317362861,1709779356155,202.0,0.00016951,7]
[317362862,1709779368776,240.44,0.00012889,2]
[317362863,1709779530457,5000.0,0.00027,120]
[317362864,1709779537820,8630.96642735,0.00012889,2]
[317362865,1709779546093,-423.43876783,0.00013588,2]
[317362866,1709779546114,-533.2141282,0.00013589,2]
[317362867,1709779546132,-108.77849103,0.00013589,2]
[317362868,1709779547064,5126.0,0.00027,120]
[317362869,1709779626109,-405.61392247,0.00013589,2]
[317362870,1709779648107,-230.96825209,0.00013589,2]
[317362871,1709779648127,-170.50917706,0.00013589,2]
[317362872,1709779684955,202.0,0.00012722,2]
[317362873,1709779750956,560.0,0.00023,60]
[317362874,1709779753126,-574.85148853,0.00013589,2]
[317362875,1709779753147,-423.43876783,0.00013847,2]
[317362876,1709779753173,-128.70974364,0.00013848,3]
[317362877,1709779760433,-73.29025636,0.00013848,3]
[317362878,1709779760454,-162.7549298,0.00013962,2]
[317362879,1709779760474,-1000.0,0.00013973,2]
[317362880,1709779760494,-150.0,0.00013981,2]
[317362881,1709779760514,-143.69714904,0.00013981,2]
[317362882,1709779778081,249.30646299,6e-05,2]
[317362883,1709779820166,228.41,0.00012109,2]
[317362891,1709779832307,-6.30285096,0.00013981,2]
[317362892,1709779832317,-474.84914344,0.00013984,2]
[317362893,1709779832329,-270.51152215,0.00013984,2]
[317362894,1709779832338,-150.0,0.00013999,2]
[317362895,1709779832348,-56.76397785,0.00014,2]
[317362896,1709779832373,-749.3,0.00014,2]
[317362897,1709779832430,-8575.58013532,0.00014,2]
[317362898,1709779832443,-17367.318153,0.00014,2]
[317362899,1709779832453,-366.79,0.00014025,2]
[317362900,1709779832463,-150.0,0.00014063,2]
[317362901,1709779832472,-999.99,0.00014063,2]
[317362902,1709779832483,-150.0,0.00014136,2]
[317362903,1709779832494,-150.0,0.00014144,2]
[317362904,1709779832503,-150.0,0.00014226,2]
[317362905,1709779832513,-2180.47,0.00014226,2]
[317362906,1709779832522,-475.7,0.00014226,2]
[317362907,1709779832531,-150.0,0.00014292,2]
[317362908,1709779832541,-150.0,0.00014308,2]
[317362909,1709779832550,-150.0,0.00014356,2]
[317362910,1709779832560,-228.41,0.00014373,2]
[317362911,1709779832570,-150.0,0.0001439,2]
[317362912,1709779832579,-267.47,0.00014397,2]
[317362913,1709779832589,-194.81,0.00014397,2]
[317362914,1709779832598,-250.0,0.00014397,2]
[317362915,1709779832607,-150.0,0.00014447,2]
[317362916,1709779832617,-150.0,0.00014471,2]
[317362917,1709779832627,-288.93,0.00014479,2]
[317362918,1709779832637,-158.13,0.00014504,2]
[317362919,1709779832647,-150.0,0.00014553,2]
[317362920,1709779832657,-150.0,0.00014602,2]
[317362921,1709779832667,-500.0,0.0001462,2]
[317362922,1709779832676,-500.0,0.0001462,2]
[317362923,1709779832686,-1000.0,0.0001462,2]
[317362924,1709779832695,-150.0,0.00014635,2]
[317362926,1709779832706,-162.75492978,0.00014706,2]
[317362928,1709779832715,-150.0,0.00014717,2]
[317362930,1709779832724,-150.0,0.00014758,2]
[317362932,1709779832736,-150.0,0.00014798,2]
[317362934,1709779832745,-309.27,0.00014841,2]
[317362935,1709779832755,-150.0,0.0001488,2]
[317362937,1709779832764,-150.0,0.00014913,2]
[317362939,1709779832774,-405.0,0.00014928,2]
[317362941,1709779832783,-150.0,0.00014962,2]
[317362943,1709779832793,-202.0,0.00014973,4]
[317362944,1709779832802,-151.76,0.00014978,2]
[317362945,1709779832811,-309.11,0.00014978,2]
[317362946,1709779832820,-2350.0,0.00015,3]
[317362947,1709779832829,-150.0,0.00015014,2]
[317362948,1709779832838,-150.0,0.00015044,2]
[317362949,1709779832847,-150.0,0.00015068,2]
[317362950,1709779832856,-150.0,0.00015125,2]
[317362951,1709779832865,-500.0,0.00015168,2]
[317362952,1709779832873,-470.64792853,0.00015206,2]
[317362953,1709779832882,-150.0,0.00015207,2]
[317362954,1709779832892,-150.0,0.00015224,2]
[317362955,1709779832901,-150.0,0.00015243,2]
[317362956,1709779832911,-150.0,0.00015289,2]
[317362958,1709779832921,-150.0,0.00015371,2]
[317362960,1709779832930,-150.0,0.00015379,2]
[317362962,1709779832940,-249.89505322,0.00015393,2]
[317362963,1709779832949,-200.0,0.00015426,2]
[317362966,1709779832959,-200.0,0.00015426,2]
[317362967,1709779832968,-500.0,0.00015426,2]
[317362970,1709779832978,-1000.0,0.00015442,2]
[317362972,1709779832988,-186.0494549,0.0001545,2]
[317362974,1709779832999,-161.47210529,0.0001545,2]
[317362976,1709779833009,-162.75492978,0.0001545,2]
[317362978,1709779833018,-2080.86422379,0.0001545,2]
[317362980,1709779833027,-183.13900974,0.0001545,2]
[317362982,1709779833036,-2000.0,0.0001545,2]
[317362984,1709779833045,-32750.3344,0.0001545,2]
[317362986,1709779833054,-9404.8431,0.0001545,2]
[317362988,1709779833063,-208.1025,0.0001545,2]
[317362990,1709779833072,-150.0,0.00015452,2]
[317362992,1709779833082,-19339.58518531,0.000155,2]
[317362994,1709779833091,-155.0,0.00015507,2]
[317362996,1709779833100,-155.27712431,0.00015508,2]
[317362998,1709779833109,-341.36370635,0.0001553,2]
[317363000,1709779833118,-154.28674149,0.00015534,2]
[317363002,1709779833128,-150.0,0.00015534,2]
[317363004,1709779833137,-484.02226758,0.00015538,2]
[317363006,1709779833146,-174.49463161,0.00015538,2]
[317363008,1709779833155,-155.0,0.00015538,2]
[317363010,1709779833165,-187.56878748,0.00015538,2]
[317363012,1709779833174,-439.75466068,0.00015538,2]
[317363014,1709779833183,-155.49013523,0.00015538,2]
[317363016,1709779833193,-504.03365716,0.00015538,2]
[317363018,1709779833203,-1837.79685961,0.00015539,2]
[317363020,1709779833214,-305186.40667866,0.0001554,2]
[317363022,1709779833228,-1239.08398397,0.0001554,2]
[317363024,1709779833238,-792.99802951,0.0001554,2]
[317363027,1709779833256,-1105.79495962,0.0001554,2]
[317363029,1709779833268,-2305.8611933,0.0001554,2]
[317363032,1709779833281,-3461.08173706,0.0001554,2]
[317363034,1709779833293,-1235.51501189,0.0001554,2]
[317363042,1709779838277,-1064.08825709,0.0001554,2]
[317363043,1709779838339,-1041.64159581,0.0001554,2]
[317363044,1709779838456,-390.94708547,0.0001554,2]
[317363045,1709779838468,-576.17945487,0.0001554,2]
[317363046,1709779838480,-257.43646803,0.0001554,2]
[317363047,1709779838596,-309451.33019179,0.0001554,2]
[317363048,1709779838605,-12884.6293649,0.0001554,2]
[317363049,1709779838614,-5282.8489204,0.0001554,2]
[317363050,1709779838623,-185569.2432266,0.0001554,2]
[317363051,1709779838633,-198.66634662,0.00015548,2]
[317363052,1709779838643,-209.13095526,0.00015549,2]
[317363053,1709779838653,-2223.0,0.00015549,2]
[317363055,1709779838662,-2223.0,0.00015549,2]
[317363057,1709779838672,-2223.0,0.00015549,2]
[317363059,1709779838681,-2223.0,0.00015549,2]
[317363060,1709779838691,-2223.0,0.00015549,2]
[317363061,1709779838700,-2223.0,0.00015549,2]
[317363062,1709779838710,-2223.0,0.00015549,2]
[317363063,1709779838720,-2223.0,0.00015549,2]
[317363064,1709779838730,-2223.0,0.00015549,2]
[317363065,1709779838742,-2223.0,0.00015549,2]
[317363066,1709779838752,-2223.0,0.00015549,2]
[317363067,1709779838761,-2223.0,0.00015549,2]
[317363068,1709779838771,-2223.0,0.00015549,2]
[317363069,1709779838781,-2223.0,0.00015549,2]
[317363070,1709779838791,-2223.0,0.00015549,2]
[317363071,1709779838801,-2223.0,0.00015549,2]
[317363072,1709779838811,-2223.0,0.00015549,2]
[317363073,1709779838820,-2223.0,0.00015549,2]
[317363074,1709779838830,-2223.0,0.00015549,2]
[317363075,1709779839228,-2223.0,0.00015549,2]
[317363076,1709779839247,-2223.0,0.00015549,2]
[317363077,1709779839257,-2223.0,0.00015549,2]
[317363078,1709779839269,-2223.0,0.00015549,2]
[317363079,1709779839279,-2223.16157929,0.00015549,2]
[317363080,1709779839289,-150.61675445,0.00015549,2]
[317363081,1709779839298,-19777200.28788689,0.0001555,2]
[317363084,1709779840374,-1676226.75215706,0.0001555,2]
[317363085,1709779840393,-517695.90454434,0.0001555,2]
[317363086,1709779840899,-351.26,0.0001555,2]
[317363087,1709779840976,-420.84563579,0.0001555,2]
[317363088,1709779840996,-376.5905547,0.0001555,2]
[317363089,1709779841013,-5456.99984624,0.0001555,2]
[317363090,1709779841032,-60065.23381111,0.0001555,2]
[317363091,1709779841050,-2500.0,0.0001555,2]
[317363092,1709779841068,-42420.85309144,0.0001555,2]
[317363093,1709779841602,-10206443.5966719,0.0001555,2]
[317363094,1709779841620,-478713.48961573,0.0001555,2]
[317363095,1709779841639,-49668.06529919,0.0001555,2]
[317363101,1709779843415,-3410.66351082,0.0001555,2]
[317363105,1709779846438,-442.13156232,0.0001555,2]
[317363106,1709779846888,-0.00023833,0.0001555,2]
[317363113,1709780308161,205.56,0.00012721,2]
[317363116,1709780733853,202.0,0.00013099,2]
[317363117,1709780768827,195.28,0.00012551,2]
[317363136,1709781031558,-202.0,0.00014301,3]
[317363137,1709781031568,-192.62,0.0001445,2]
[317363138,1709781031580,-250.0,0.00014455,2]
[317363139,1709781031589,-800.0,0.0001448,2]
[317363140,1709781031599,-160.84417739,0.00014597,2]
[317363141,1709781031609,-13.43041233,0.0001462,2]
[317363142,1709781031725,-486.56958767,0.0001462,2]
[317363143,1709781031735,-500.0,0.0001462,2]
[317363144,1709781031746,-500.0,0.0001462,2]
[317363145,1709781031755,-200.0,0.00014697,2]
[317363146,1709781031765,-195.28,0.00014815,2]
[317363147,1709781031774,-150.0,0.00014999,2]
[317363148,1709781031785,-150.0,0.00014999,2]
[317363149,1709781031794,-41521.86727083,0.00015,2]
[317363150,1709781031804,-798.11,0.00015125,2]
[317363151,1709781031814,-500.0,0.00015168,2]
[317363152,1709781031823,-647.6,0.00015168,2]
[317363153,1709781031833,-1990.94,0.00015168,2]
[317363154,1709781031843,-200.0,0.00015426,2]
[317363156,1709781031853,-500.0,0.00015426,2]
[317363159,1709781031863,-500.0,0.00015442,2]
[317363161,1709781031873,-18439.3464799,0.00015448,3]
[317363163,1709781031893,-306.62599,0.00015448,3]
[317363245,1709781037482,-2159.92175101,0.00015448,3]
[317363246,1709781037720,-47381.34489735,0.00015448,3]
[317363247,1709781037730,-966.41485524,0.0001545,2]
[317363248,1709781037740,-2000.0,0.0001545,2]
[317363249,1709781037753,-966.4148552,0.00015457,2]
[317363250,1709781037767,-966.4148552,0.00015465,2]
[317363251,1709781037777,-966.4148552,0.00015472,2]
[317363252,1709781037787,-966.4148552,0.0001548,2]
[317363253,1709781037797,-966.4148552,0.00015487,2]
[317363254,1709781037808,-966.4148552,0.00015495,2]
[317363255,1709781037818,-2810.45638391,0.00015499,2]
[317363256,1709781037828,-19339.58518531,0.000155,2]
[317363257,1709781037838,-155.0,0.000155,2]
[317363258,1709781037848,-966.4148552,0.00015502,2]
[317363259,1709781037858,-202.0,0.00015504,4]
[317363260,1709781037867,-966.4148552,0.0001551,2]
[317363261,1709781037877,-966.4148552,0.00015517,2]
[317363262,1709781037888,-966.4148552,0.00015525,2]
[317363263,1709781037899,-966.4148552,0.00015532,2]
[317363264,1709781037911,-648.38,0.00015542,2]
[317363265,1709781037922,-648.38,0.00015542,2]
[317363266,1709781037933,-648.38,0.00015542,2]
[317363267,1709781037944,-648.38,0.00015542,2]
[317363268,1709781037954,-648.38,0.00015542,2]
[317363269,1709781037965,-648.38,0.00015542,2]
[317363270,1709781037976,-648.38,0.00015542,2]
[317363271,1709781037986,-648.38,0.00015542,2]
[317363272,1709781037998,-648.38,0.00015542,2]
[317363273,1709781038009,-648.38,0.00015542,2]
[317363274,1709781038020,-648.38,0.00015542,2]
[317363275,1709781038030,-648.38,0.00015542,2]
[317363276,1709781038041,-648.38,0.00015542,2]
[317363277,1709781038056,-648.38,0.00015542,2]
[317363278,1709781038066,-648.38,0.00015542,2]
[317363279,1709781038078,-648.38,0.00015542,2]
[317363280,1709781038089,-648.38,0.00015542,2]
[317363281,1709781038100,-648.38,0.00015542,2]
[317363282,1709781038111,-648.38,0.00015542,2]
[317363283,1709781038122,-648.38,0.00015542,2]
[317363284,1709781038133,-648.38,0.00015542,2]
[317363285,1709781038143,-648.38,0.00015542,2]
[317363286,1709781038153,-648.38,0.00015542,2]
[317363287,1709781038162,-648.42157929,0.00015542,2]
[317363288,1709781038172,-844.18264334,0.00015548,2]
[317363289,1709781038182,-694.59314118,0.00015548,2]
[317363290,1709781038192,-239.85178698,0.00015548,2]
[317363291,1709781038202,-217.3978144,0.00015548,2]
[317363292,1709781038212,-353.40742689,0.00015548,2]
[317363293,1709781038222,-396.73071181,0.00015549,2]
[317363294,1709781038233,-204.90583976,0.00015549,2]
[317363295,1709781038243,-4995.29670703,0.00015549,2]
[317363296,1709781038252,-150.61675445,0.00015549,2]
[317363297,1709781038262,-2271118.01101389,0.0001555,2]
[317363298,1709781038271,-230.92044072,0.0001555,2]
[317363299,1709781038281,-17414419.62563185,0.0001555,2]
[317363300,1709781038294,-1676226.75215706,0.0001555,2]
[317363301,1709781038306,-517695.90454434,0.0001555,2]
[317363310,1709781041427,-378.38,0.0001555,2]
[317363311,1709781041438,-2644.17909676,0.0001555,2]
[317363312,1709781041545,-69775.00545782,0.0001555,2]
[317363313,1709781041557,-2646.64,0.0001555,2]
[317363314,1709781041583,-18959.56663633,0.0001555,2]
[317363317,1709781042570,-7050.5,0.0001555,2]
[317363318,1709781042694,-500.0,0.0001555,2]
[317363319,1709781042904,-2878.80093579,0.0001555,2]
[317363320,1709781042916,-1423.95175716,0.0001555,2]
[317363322,1709781045666,-0.00244302,0.0001555,2]
[317363323,1709781045690,-2045.25692289,0.0001555,2]
[317363324,1709781045957,-26624.700004,0.0001555,2]
[317363351,1709781323340,175.75,0.00013071,2]
[317363353,1709781777063,166.96,0.00012885,2]
[317363355,1709782033153,-160.02586867,0.00013701,2]
[317363356,1709782144725,202.0,0.00012707,2]
[317363357,1709782145278,202.0,0.00015263,5]
[317363358,1709782153091,-230.92044072,0.00013701,2]
[317363359,1709782153110,-534.45401795,0.00013705,2]
[317363360,1709782153128,-116.27471258,0.00013985,3]
[317363368,1709782232953,-166.58368889,0.00013984,2]
[317363369,1709782232965,-331.58305835,0.00013984,2]
[317363370,1709782232974,-85.72528742,0.00013985,3]
[317363371,1709782232984,-500.0,0.0001462,2]
[317363372,1709782232994,-500.0,0.0001462,2]
[317363373,1709782233004,-500.0,0.0001462,2]
[317363374,1709782233014,-192.62,0.00014633,2]
[317363375,1709782233024,-250.0,0.00014691,2]
[317363376,1709782233034,-1000.0,0.00014982,2]
[317363377,1709782233044,-166.96,0.00015149,2]
[317363378,1709782233053,-500.0,0.00015168,2]
[317363379,1709782233062,-652.2404,0.0001535,2]
[317363380,1709782233072,-500.0,0.00015442,2]
[317363381,1709782233082,-150.0,0.00015449,2]
[317363382,1709782233091,-5773.96894717,0.0001545,2]
[317363383,1709782233125,-367.92025283,0.0001545,2]
[317363384,1709782233134,-885.88028397,0.00015455,2]
[317363385,1709782233143,-16000.0,0.000155,2]
[317363386,1709782233153,-155.0,0.000155,2]
[317363387,1709782233162,-14275.02240532,0.000155,2]
[317363388,1709782234055,201.0,0.00012707,2]
[317363392,1709782237893,-650.39287504,0.000155,2]
[317363393,1709782237906,-4414.16990495,0.000155,2]
[317363394,1709782237915,-160.02354749,0.00015542,2]
[317363395,1709782237928,-467.61437635,0.00015542,2]
[317363396,1709782237937,-648.38,0.00015543,2]
[317363397,1709782237946,-648.38,0.00015543,2]
[317363398,1709782237956,-648.38,0.00015543,2]
[317363399,1709782237965,-648.38,0.00015543,2]
[317363400,1709782237975,-648.38,0.00015543,2]
[317363401,1709782237984,-648.38,0.00015543,2]
[317363402,1709782237994,-648.38,0.00015543,2]
[317363403,1709782238004,-648.38,0.00015543,2]
[317363405,1709782238014,-648.38,0.00015543,2]
[317363406,1709782238024,-648.38,0.00015543,2]
[317363407,1709782238034,-648.38,0.00015543,2]
[317363408,1709782238043,-648.38,0.00015543,2]
[317363409,1709782238053,-648.38,0.00015543,2]
[317363410,1709782238062,-648.38,0.00015543,2]
[317363411,1709782238071,-648.38,0.00015543,2]
[317363412,1709782238081,-648.38,0.00015543,2]
[317363413,1709782238091,-648.38,0.00015543,2]
[317363414,1709782238102,-648.38,0.00015543,2]
[317363415,1709782238112,-648.38,0.00015543,2]
[317363416,1709782238122,-648.38,0.00015543,2]
[317363417,1709782238131,-648.38,0.00015543,2]
[317363418,1709782238141,-648.38,0.00015543,2]
[317363419,1709782238151,-648.38,0.00015543,2]
[317363420,1709782238160,-648.42157929,0.00015543,2]
[317363421,1709782238169,-216486.9717977,0.00015544,2]
[317363422,1709782238179,-6163.0254312,0.00015544,2]
[317363423,1709782238188,-1107.54699434,0.00015549,2]
[317363424,1709782238198,-200000.0,0.00015549,2]
[317363425,1709782238208,-669.3031,0.00015549,2]
[317363426,1709782238218,-747.25908346,0.00015549,2]
[317363427,1709782238228,-1230449.67634228,0.0001555,2]
[317363428,1709782238240,-517695.90454434,0.0001555,2]
[317363429,1709782238264,-1269.50305681,0.0001555,2]
[317363430,1709782238277,-3570.16899392,0.0001555,2]
[317363431,1709782238289,-631.20382834,0.0001555,2]
[317363432,1709782240783,-380.49834999,0.0001555,2]
[317363448,1709782244482,-5362.09126179,0.0001555,2]
[317363449,1709782244496,-4258.1781663,0.0001555,2]
[317363450,1709782244556,-257.61750003,0.0001555,2]
[317363451,1709782244567,-339.27576,0.0001555,2]
[317363452,1709782245859,-2580.23785557,0.0001555,2]
[317363470,1709782264692,202.0,0.00012707,2]
[317363471,1709782280361,1001.49034721,0.00015549,5]
[317363472,1709782756875,150.26,0.00012616,2]
[317363478,1709783022975,-599.99999907,0.00019,20]
[317363479,1709783025280,-600.0,0.0002,21]
[317363480,1709783025301,-1002.0,0.0002,30]
[317363481,1709783025322,-2600.02352249,0.0002,30]
[317363482,1709783025378,-600.0,0.00021,22]
[317363483,1709783034002,7774.0,0.0002,120]
[317363484,1709783203338,150.26,0.00012449,2]
[317363485,1709783231302,471.72916306,0.00013491,2]
[317363486,1709783236587,745.36066559,0.00013491,2]
[317363487,1709783243961,423.43876783,0.00013491,2]
[317363488,1709783303264,1082.41407864,0.00013491,2]
[317363489,1709783305770,1082.41407864,0.00013491,2]
[317363490,1709783311429,1304.36180712,0.00013491,2]
[317363493,1709783348792,-165.08,0.00017808,10]
[317363496,1709783351060,-202.0,0.00020178,10]
[317363520,1709783431883,-533.2141282,0.00013499,2]
[317363521,1709783432266,-370.33682775,0.000135,2]
[317363522,1709783432278,-44.58317225,0.000135,2]
[317363523,1709783432289,-202.0,0.00013541,2]
[317363524,1709783432298,-339.74674312,0.00013993,2]
[317363525,1709783432307,-102.42008463,0.00014406,2]
[317363526,1709783432329,-897.57991537,0.00014406,2]
[317363528,1709783432339,-250.0,0.00014421,2]
[317363529,1709783432348,-150.0,0.00014658,2]
[317363530,1709783432357,-1304.36180712,0.00014672,2]
[317363531,1709783432366,-150.26,0.00014838,2]
[317363532,1709783432375,-56.2531191,0.00014868,3]
[317363533,1709783432402,-145.7468809,0.00014868,3]
[317363534,1709783432412,-150.0,0.00014999,2]
[317363535,1709783432422,-2350.0,0.00015,3]
[317363536,1709783432431,-500.0,0.00015,2]
[317363537,1709783432441,-200.0,0.00015425,2]
[317363538,1709783432450,-800.0,0.00015425,2]
[317363539,1709783432460,-200.0,0.00015425,2]
[317363540,1709783432470,-200.0,0.00015425,2]
[317363541,1709783432480,-500.0,0.00015425,2]
[317363542,1709783432490,-200.0,0.00015425,2]
[317363543,1709783432499,-766.2531201,0.00015425,2]
[317363544,1709783432518,-33.7468799,0.00015425,2]
[317363545,1709783432528,-200.0,0.00015425,2]
[317363546,1709783432537,-200.0,0.00015425,2]
[317363547,1709783432547,-200.0,0.00015425,2]
[317363548,1709783432558,-800.0,0.00015425,2]
[317363549,1709783432568,-200.0,0.00015425,2]
[317363550,1709783432578,-500.0,0.00015425,2]
[317363551,1709783432588,-200.0,0.00015425,2]
[317363552,1709783432598,-200.0,0.00015425,2]
[317363553,1709783432607,-800.0,0.00015425,2]
[317363554,1709783432617,-200.0,0.00015425,2]
[317363555,1709783432627,-200.0,0.00015425,2]
[317363556,1709783432637,-39.30758009,0.00015425,2]
[317363557,1709783432649,-298.7,0.00015425,2]
[317363558,1709783432698,-202.0,0.00018851,8]
[317363559,1709783432733,-152.0,0.0001925,7]
[317363560,1709783432754,-152.0,0.00019407,8]
[317363561,1709783432781,-152.0,0.00019563,9]
[317363562,1709783432803,-152.0,0.00019719,10]
[317363563,1709783432824,-152.0,0.00019875,11]
[317363564,1709783435703,-1832.0,0.0002,7]
[317363565,1709783435737,-96838.92,0.0002,7]
[317363566,1709783435770,-461.99241991,0.00015425,2]
[317363567,1709783435783,-75.82494669,0.00015425,2]
[317363568,1709783435800,-124.17505331,0.00015425,2]
[317363569,1709783435814,-800.0,0.00015425,2]
[317363570,1709783435827,-200.0,0.00015425,2]
[317363571,1709783435841,-500.0,0.00015425,2]
[317363572,1709783435855,-200.0,0.00015425,2]
[317363573,1709783435868,-200.0,0.00015425,2]
[317363574,1709783435882,-200.0,0.00015425,2]
[317363575,1709783435895,-164.34600926,0.00015426,2]
[317363576,1709783435913,-635.65399074,0.00015426,2]
[317363577,1709783435927,-200.0,0.00015426,2]
[317363578,1709783435940,-200.0,0.00015426,2]
[317363579,1709783435954,-200.0,0.00015426,2]
[317363580,1709783435968,-200.0,0.00015426,2]
[317363581,1709783435981,-200.0,0.00015426,2]
[317363582,1709783435995,-200.0,0.00015426,2]
[317363583,1709783436009,-800.0,0.00015426,2]
[317363584,1709783436024,-800.0,0.00015426,2]
[317363585,1709783436038,-800.0,0.00015426,2]
[317363586,1709783436052,-800.0,0.00015426,2]
[317363587,1709783436066,-800.0,0.00015426,2]
[317363588,1709783436079,-800.0,0.00015426,2]
[317363589,1709783436093,-800.0,0.00015426,2]
[317363590,1709783436107,-200.0,0.00015426,2]
[317363591,1709783436120,-200.0,0.00015426,2]
[317363592,1709783436134,-200.0,0.00015426,2]
[317363593,1709783436148,-200.0,0.00015426,2]
[317363594,1709783436162,-200.0,0.00015426,2]
[317363595,1709783436175,-200.0,0.00015426,2]
[317363596,1709783436188,-200.0,0.00015426,2]
[317363597,1709783436202,-200.0,0.00015426,2]
[317363598,1709783436215,-200.0,0.00015426,2]
[317363599,1709783436229,-200.0,0.00015426,2]
[317363600,1709783436243,-200.0,0.00015426,2]
[317363601,1709783436264,-500.0,0.00015426,2]
[317363602,1709783436280,-500.0,0.00015426,2]
[317363603,1709783436294,-500.0,0.00015426,2]
[317363604,1709783436308,-200.0,0.00015426,2]
[317363605,1709783436321,-200.0,0.00015426,2]
[317363606,1709783436335,-200.0,0.00015426,2]
[317363607,1709783436348,-314.4294,0.00015444,2]